fUST/lending_fUST_20250306
["ID","MTS","AMOUNT","RATE_DAILY","PERIOD"]
[355489768,1741203032365,-1144.53921446,0.000325,30]
[355489770,1741203032375,-2319.3956032,0.00032879,2]
[355489772,1741203032385,-400.0,0.00033999,2]
[355489774,1741203032394,-296.0,0.00034,30]
[355489776,1741203032403,-203.461448,0.00034646,2]
[355489778,1741203032413,-310.3797944,0.00034672,2]
[355489780,1741203032422,-191.679448,0.00034692,120]
[355489782,1741203032431,-427.659347,0.0003589,2]
[355489784,1741203032440,-300.0,0.00036492,2]
[355489786,1741203032449,-629.64,0.00037641,3]
[355489788,1741203032458,-500.0,0.0003765,15]
[355489790,1741203032467,-500.0,0.0003765,15]
[355489792,1741203032477,-511.80273244,0.0003765,15]
[355489794,1741203032486,-500.0,0.0003765,15]
[355489796,1741203032495,-500.0,0.0003765,15]
[355489798,1741203032504,-500.0,0.0003765,15]
[355489800,1741203032513,-500.0,0.0003765,15]
[355489802,1741203032522,-500.0,0.0003765,15]
[355489804,1741203032531,-616.49368737,0.0003765,15]
[355489806,1741203032540,-500.0,0.0003765,2]
[355489808,1741203032550,-500.0,0.0003765,2]
[355489810,1741203032559,-500.0,0.0003765,2]
[355489812,1741203032568,-300.0,0.0003765,2]
[355489814,1741203032578,-203.95,0.0003765,2]
[355489817,1741203032587,-256.96972985,0.00037651,5]
[355489819,1741203032596,-6223.39531019,0.00037651,5]
[355489821,1741203032605,-28725.44487282,0.00037651,2]
[355490182,1741203038246,-4385.04525997,0.00037651,2]
[355490275,1741203040496,-398.15093894,0.00037651,2]
[355490276,1741203040508,-450.66000005,0.00037651,2]
[355490315,1741203043330,-300.0,0.0003765,2]
[355490317,1741203043344,-100.15,0.00037651,2]
[355490323,1741203043388,-6554.33689155,0.00037651,2]
[355490325,1741203043400,-1145.15721172,0.00037651,2]
[355490328,1741203043413,-180241.05482495,0.00037651,2]
[355490330,1741203043423,-160.0,0.00037655,2]
[355490332,1741203043433,-416.66666667,0.00037656,2]
[355490334,1741203043443,-500.0,0.00037673,5]
[355490336,1741203043453,-500.0,0.00037673,5]
[355490339,1741203043463,-459.77983,0.00037673,5]
[355490342,1741203043472,-576.90571469,0.00037673,5]
[355490345,1741203043482,-500.0,0.00037673,5]
[355490348,1741203043491,-500.0,0.00037673,5]
[355490351,1741203043501,-500.0,0.00037673,5]
[355490354,1741203043511,-503.79416774,0.00037673,5]
[355490356,1741203043521,-200.86626193,0.00037673,5]
[355490358,1741203043530,-302.20059007,0.00037673,5]
[355490360,1741203043539,-576.66,0.000378,30]
[355490362,1741203043548,-660.90778253,0.000379,8]
[355490364,1741203043557,-3622.25029627,0.00038,15]
[355490366,1741203043567,-225.22930833,0.00038355,15]
[355490369,1741203043577,-500.0,0.00038355,15]
[355490371,1741203043587,-500.0,0.00038355,15]
[355490373,1741203043596,-500.0,0.00038355,15]
[355490375,1741203043605,-336.26441999,0.00038355,15]
[355490377,1741203043615,-500.0,0.00038355,15]
[355490379,1741203043624,-500.0,0.00038355,15]
[355490381,1741203043634,-281.96117207,0.00038355,15]
[355490383,1741203043644,-150.0,0.00038356,2]
[355490385,1741203043654,-504.25188799,0.00038356,9]
[355490387,1741203043663,-500.0,0.00038356,9]
[355490389,1741203043673,-500.0,0.00038356,9]
[355490391,1741203043683,-500.0,0.00038356,9]
[355490393,1741203043693,-500.0,0.00038356,9]
[355490395,1741203043703,-505.29928515,0.00038356,9]
[355490397,1741203043712,-500.0,0.00038356,9]
[355490399,1741203043722,-349.38260494,0.00038356,9]
[355490401,1741203043731,-505.22408035,0.00038356,9]
[355490403,1741203043741,-500.0,0.00038356,9]
[355490405,1741203043750,-263.0688069,0.00038356,9]
[355490407,1741203043759,-454.00289106,0.00038356,9]
[355490409,1741203043769,-500.0,0.00038356,9]
[355490411,1741203043778,-500.0,0.00038356,9]
[355490414,1741203043789,-539.1028233,0.00038356,9]
[355490415,1741203043798,-500.0,0.00038356,9]
[355490417,1741203043807,-500.0,0.00038356,9]
[355490419,1741203043816,-500.0,0.00038356,9]
[355490421,1741203043826,-500.0,0.00038356,9]
[355490424,1741203043835,-500.0,0.00038356,9]
[355490426,1741203043845,-394.47257533,0.00038356,9]
[355490428,1741203043854,-500.0,0.00038356,2]
[355490430,1741203043864,-509.86104198,0.00038356,9]
[355490432,1741203043873,-500.0,0.00038356,9]
[355490434,1741203043882,-500.0,0.00038356,9]
[355490436,1741203043891,-500.0,0.00038356,9]
[355490438,1741203043900,-500.0,0.00038356,9]
[355490440,1741203043909,-500.0,0.00038356,9]
[355490442,1741203043919,-500.0,0.00038356,9]
[355490444,1741203043928,-500.0,0.00038356,9]
[355490446,1741203043939,-305.25549585,0.00038356,9]
[355490448,1741203043948,-500.0,0.00038356,9]
[355490450,1741203043958,-500.0,0.00038356,9]
[355490452,1741203043967,-510.74726545,0.00038356,9]
[355490454,1741203043977,-500.0,0.00038356,9]
[355490456,1741203043986,-500.0,0.00038356,9]
[355490458,1741203043995,-500.0,0.00038356,9]
[355490460,1741203044004,-500.0,0.00038356,9]
[355490462,1741203044014,-500.0,0.00038356,9]
[355490464,1741203044023,-500.0,0.00038356,9]
[355490466,1741203044032,-500.0,0.00038356,9]
[355490468,1741203044041,-200.0,0.00038356,7]
[355490470,1741203044051,-500.0,0.00038356,9]
[355490472,1741203044060,-500.0,0.00038356,9]
[355490474,1741203044070,-511.13166108,0.00038356,9]
[355490476,1741203044080,-500.0,0.00038356,9]
[355490478,1741203044089,-500.0,0.00038356,9]
[355490480,1741203044099,-500.0,0.00038356,9]
[355490482,1741203044108,-500.0,0.00038356,9]
[355490483,1741203044117,-500.0,0.00038356,9]
[355490484,1741203044126,-500.0,0.00038356,9]
[355490485,1741203044135,-500.0,0.00038356,9]
[355490486,1741203044144,-500.0,0.00038356,9]
[355490487,1741203044153,-500.0,0.00038356,9]
[355490488,1741203044167,-500.0,0.00038356,9]
[355490489,1741203044176,-416.32822481,0.00038356,9]
[355490490,1741203044188,-500.0,0.00038356,9]
[355490491,1741203044198,-500.0,0.00038356,9]
[355490492,1741203044206,-500.0,0.00038356,9]
[355490493,1741203044215,-500.0,0.00038356,9]
[355490494,1741203044224,-500.0,0.00038356,9]
[355490495,1741203044233,-500.0,0.00038356,9]
[355490496,1741203044245,-500.0,0.00038356,9]
[355490497,1741203044255,-500.0,0.00038356,9]
[355490498,1741203044264,-500.0,0.00038356,9]
[355490499,1741203044274,-297.55088593,0.00038356,9]
[355490500,1741203044283,-500.0,0.00038356,9]
[355490501,1741203044293,-500.0,0.00038356,9]
[355490502,1741203044302,-500.0,0.00038356,9]
[355490503,1741203044311,-500.0,0.00038356,9]
[355490504,1741203044320,-500.0,0.00038356,9]
[355490505,1741203044329,-500.0,0.00038356,9]
[355490507,1741203044338,-500.0,0.00038356,9]
[355490509,1741203044347,-500.0,0.00038356,9]
[355490511,1741203044357,-500.0,0.00038356,9]
[355490513,1741203044366,-500.0,0.00038356,9]
[355490515,1741203044380,-500.0,0.00038356,9]
[355490518,1741203044393,-502.21391993,0.00038356,9]
[355490520,1741203044406,-500.0,0.00038356,9]
[355490523,1741203044422,-500.0,0.00038356,9]
[355490525,1741203044437,-500.0,0.00038356,9]
[355490527,1741203044450,-251.96,0.00038356,9]
[355490530,1741203044462,-500.0,0.00038356,9]
[355490532,1741203044472,-502.61,0.00038356,9]
[355490534,1741203044482,-500.0,0.00038356,9]
[355490536,1741203044494,-500.0,0.00038356,9]
[355490538,1741203044505,-500.0,0.00038356,9]
[355490541,1741203044517,-500.0,0.00038356,9]
[355490543,1741203044528,-500.0,0.00038356,9]
[355490545,1741203044539,-500.0,0.00038356,9]
[355490547,1741203044551,-500.0,0.00038356,9]
[355490549,1741203044562,-500.0,0.00038356,9]
[355490552,1741203044575,-500.0,0.00038356,9]
[355490554,1741203044585,-500.0,0.00038356,9]
[355490556,1741203044596,-222.91349804,0.00038356,9]
[355490558,1741203044608,-500.0,0.00038356,9]
[355490561,1741203044620,-500.0,0.00038356,9]
[355490563,1741203044632,-500.0,0.00038356,9]
[355490565,1741203044644,-719.54,0.00038356,9]
[355490567,1741203044656,-500.0,0.00038356,9]
[355490570,1741203044668,-500.0,0.00038356,9]
[355490572,1741203044679,-500.0,0.00038356,9]
[355490574,1741203044692,-500.0,0.00038356,9]
[355490576,1741203044703,-500.0,0.00038356,9]
[355490580,1741203044724,-500.0,0.00038356,9]
[355490582,1741203044738,-500.0,0.00038356,9]
[355490585,1741203044755,-500.0,0.00038356,9]
[355490587,1741203044769,-575.38,0.00038356,9]
[355490590,1741203044782,-500.0,0.00038356,9]
[355490592,1741203044793,-500.0,0.00038356,9]
[355490594,1741203044806,-500.0,0.00038356,9]
[355490596,1741203044817,-500.0,0.00038356,9]
[355490599,1741203044828,-500.0,0.00038356,9]
[355490601,1741203044839,-500.0,0.00038356,9]
[355490603,1741203044849,-500.0,0.00038356,9]
[355490605,1741203044862,-500.0,0.00038356,9]
[355490607,1741203044872,-526.31,0.00038356,9]
[355490610,1741203044885,-500.0,0.00038356,9]
[355490612,1741203044896,-500.0,0.00038356,9]
[355490614,1741203044908,-500.0,0.00038356,9]
[355490616,1741203044920,-500.0,0.00038356,9]
[355490619,1741203044933,-500.0,0.00038356,9]
[355490621,1741203044947,-500.0,0.00038356,9]
[355490624,1741203044960,-500.0,0.00038356,9]
[355490626,1741203044973,-500.0,0.00038356,9]
[355490628,1741203044986,-500.0,0.00038356,9]
[355490630,1741203044997,-383.37074543,0.00038356,9]
[355490633,1741203045009,-500.0,0.00038356,9]
[355490635,1741203045022,-500.0,0.00038356,9]
[355490637,1741203045033,-500.0,0.00038356,9]
[355490639,1741203045043,-500.0,0.00038356,9]
[355490642,1741203045054,-500.0,0.00038356,9]
[355490644,1741203045065,-500.0,0.00038356,9]
[355490646,1741203045075,-500.0,0.00038356,9]
[355490648,1741203045086,-555.4923656,0.00038356,9]
[355490650,1741203045097,-500.0,0.00038356,9]
[355490653,1741203045110,-500.0,0.00038356,9]
[355490655,1741203045123,-500.0,0.00038356,9]
[355490657,1741203045135,-500.0,0.00038356,9]
[355490660,1741203045147,-474.55170745,0.00038356,9]
[355490662,1741203045158,-500.0,0.00038356,9]
[355490664,1741203045172,-500.0,0.00038356,9]
[355490666,1741203045182,-500.0,0.00038356,9]
[355490668,1741203045193,-500.0,0.00038356,9]
[355490670,1741203045206,-500.0,0.00038356,9]
[355490672,1741203045218,-500.0,0.00038356,9]
[355490675,1741203045231,-500.0,0.00038356,9]
[355490677,1741203045246,-500.0,0.00038356,9]
[355490680,1741203045258,-500.0,0.00038356,9]
[355490682,1741203045269,-500.0,0.00038356,9]
[355490684,1741203045279,-500.0,0.00038356,9]
[355490686,1741203045289,-500.0,0.00038356,9]
[355490688,1741203045299,-500.0,0.00038356,9]
[355490690,1741203045310,-500.0,0.00038356,9]
[355490692,1741203045321,-500.0,0.00038356,9]
[355490694,1741203045331,-503.53346243,0.00038356,7]
[355490697,1741203045342,-500.0,0.00038356,9]
[355490699,1741203045353,-500.0,0.00038356,9]
[355490701,1741203045364,-500.0,0.00038356,9]
[355490703,1741203045375,-500.0,0.00038356,9]
[355490705,1741203045386,-627.8,0.00038356,9]
[355490707,1741203045397,-500.0,0.00038356,9]
[355490710,1741203045408,-540.86,0.00038356,9]
[355490712,1741203045419,-500.0,0.00038356,9]
[355490714,1741203045431,-500.0,0.00038356,9]
[355490716,1741203045442,-500.0,0.00038356,9]
[355490719,1741203045457,-500.0,0.00038356,9]
[355490721,1741203045469,-500.0,0.00038356,9]
[355490723,1741203045480,-500.0,0.00038356,9]
[355490725,1741203045492,-500.0,0.00038356,9]
[355490728,1741203045503,-500.0,0.00038356,9]
[355490730,1741203045514,-500.0,0.00038356,9]
[355490732,1741203045525,-500.0,0.00038356,9]
[355490734,1741203045537,-500.0,0.00038356,9]
[355490737,1741203045547,-500.0,0.00038356,9]
[355490739,1741203045559,-500.0,0.00038356,9]
[355490741,1741203045569,-500.0,0.00038356,9]
[355490743,1741203045580,-500.0,0.00038356,9]
[355490745,1741203045591,-500.0,0.00038356,9]
[355490747,1741203045601,-500.0,0.00038356,9]
[355490750,1741203045613,-500.0,0.00038356,9]
[355490752,1741203045624,-500.0,0.00038356,9]
[355490754,1741203045635,-1449.28,0.00038356,9]
[355490756,1741203045646,-500.0,0.00038356,9]
[355490759,1741203045657,-500.0,0.00038356,9]
[355490761,1741203045668,-500.0,0.00038356,9]
[355490763,1741203045679,-500.0,0.00038356,9]
[355490766,1741203045691,-500.0,0.00038356,9]
[355490769,1741203045702,-500.0,0.00038356,9]
[355490771,1741203045712,-500.0,0.00038356,9]
[355490775,1741203045723,-500.0,0.00038356,9]
[355490778,1741203045734,-500.0,0.00038356,9]
[355490781,1741203045744,-500.0,0.00038356,9]
[355490783,1741203045755,-500.0,0.00038356,9]
[355490786,1741203045766,-836.51,0.00038356,9]
[355490789,1741203045777,-3781.0,0.00038356,9]
[355490792,1741203045787,-1108.54,0.00038356,9]
[355490795,1741203045798,-500.0,0.00038356,9]
[355490797,1741203045809,-500.0,0.00038356,9]
[355490801,1741203045820,-500.0,0.00038356,9]
[355490804,1741203045830,-500.0,0.00038356,9]
[355490807,1741203045841,-500.0,0.00038356,9]
[355490810,1741203045852,-536.03,0.00038356,9]
[355490812,1741203045862,-500.0,0.00038356,9]
[355490814,1741203045872,-500.0,0.00038356,9]
[355490816,1741203045883,-500.0,0.00038356,9]
[355490818,1741203045893,-500.0,0.00038356,9]
[355490820,1741203045904,-500.0,0.00038356,9]
[355490822,1741203045915,-500.0,0.00038356,9]
[355490824,1741203045925,-500.0,0.00038356,9]
[355490826,1741203045937,-500.0,0.00038356,9]
[355490828,1741203045947,-500.0,0.00038356,9]
[355490830,1741203045957,-4193.19,0.00038356,9]
[355490832,1741203045968,-511.69125559,0.00038356,9]
[355490834,1741203045978,-500.0,0.00038356,9]
[355490836,1741203045989,-500.0,0.00038356,9]
[355490839,1741203046000,-500.0,0.00038356,9]
[355490841,1741203046011,-500.0,0.00038356,9]
[355490843,1741203046022,-6028.13,0.00038356,9]
[355490845,1741203046032,-500.0,0.00038356,9]
[355490847,1741203046043,-500.0,0.00038356,9]
[355490849,1741203046054,-500.0,0.00038356,9]
[355490851,1741203046064,-500.0,0.00038356,9]
[355490853,1741203046075,-500.0,0.00038356,9]
[355490855,1741203046086,-500.0,0.00038356,9]
[355490858,1741203046097,-500.0,0.00038356,9]
[355490860,1741203046107,-3007.05,0.00038356,9]
[355490862,1741203046118,-500.0,0.00038356,9]
[355490864,1741203046128,-500.0,0.00038356,9]
[355490866,1741203046138,-500.0,0.00038356,9]
[355490868,1741203046149,-500.0,0.00038356,9]
[355490870,1741203046162,-525.11,0.00038356,9]
[355490872,1741203046173,-500.0,0.00038356,9]
[355490874,1741203046184,-662.63,0.00038356,9]
[355490877,1741203046195,-500.0,0.00038356,9]
[355490879,1741203046206,-500.0,0.00038356,9]
[355490881,1741203046216,-500.0,0.00038356,9]
[355490883,1741203046226,-500.0,0.00038356,9]
[355490885,1741203046237,-500.0,0.00038356,9]
[355490887,1741203046251,-500.0,0.00038356,9]
[355490889,1741203046261,-500.0,0.00038356,9]
[355490891,1741203046272,-500.0,0.00038356,9]
[355490893,1741203046282,-500.0,0.00038356,9]
[355490895,1741203046292,-308.04111107,0.00038356,9]
[355490897,1741203046302,-500.0,0.00038356,9]
[355490899,1741203046312,-500.0,0.00038356,9]
[355490922,1741203046510,-500.0,0.00038356,9]
[355490924,1741203046523,-500.0,0.00038356,9]
[355490925,1741203046532,-500.0,0.00038356,9]
[355490926,1741203046542,-500.0,0.00038356,9]
[355490927,1741203046551,-500.0,0.00038356,9]
[355490928,1741203046560,-500.0,0.00038356,9]
[355490929,1741203046569,-500.0,0.00038356,9]
[355490930,1741203046579,-500.0,0.00038356,9]
[355490931,1741203046588,-436.02481084,0.00038356,9]
[355490932,1741203046597,-500.0,0.00038356,9]
[355490933,1741203046606,-500.0,0.00038356,9]
[355490934,1741203046615,-500.0,0.00038356,9]
[355490935,1741203046624,-500.0,0.00038356,9]
[355490936,1741203046633,-500.0,0.00038356,9]
[355490937,1741203046643,-500.0,0.00038356,9]
[355490938,1741203046650,-411.65532882,0.00038356,9]
[355490939,1741203046693,-88.34467118,0.00038356,9]
[355490940,1741203046702,-739.39,0.00038356,9]
[355490941,1741203046711,-536.59,0.00038356,9]
[355490942,1741203046720,-500.0,0.00038356,9]
[355490943,1741203046730,-500.0,0.00038356,9]
[355490944,1741203046739,-500.0,0.00038356,9]
[355490945,1741203046748,-500.0,0.00038356,9]
[355490946,1741203046757,-500.0,0.00038356,9]
[355490947,1741203046767,-500.0,0.00038356,9]
[355490948,1741203046776,-500.0,0.00038356,9]
[355490949,1741203046785,-500.0,0.00038356,9]
[355490950,1741203046794,-500.0,0.00038356,9]
[355490951,1741203046803,-510.8365529,0.00038356,9]
[355490952,1741203046813,-500.0,0.00038356,9]
[355490953,1741203046822,-500.0,0.00038356,9]
[355490954,1741203046831,-500.0,0.00038356,9]
[355490955,1741203046841,-500.0,0.00038356,9]
[355490956,1741203046851,-500.0,0.00038356,9]
[355490957,1741203046860,-500.0,0.00038356,9]
[355490958,1741203046869,-500.0,0.00038356,9]
[355490959,1741203046879,-500.0,0.00038356,9]
[355490960,1741203046888,-500.0,0.00038356,9]
[355490961,1741203046897,-802.5,0.00038356,9]
[355490962,1741203046907,-500.0,0.00038356,9]
[355490963,1741203046916,-500.0,0.00038356,9]
[355490964,1741203046925,-500.0,0.00038356,9]
[355490965,1741203046934,-500.0,0.00038356,9]
[355490966,1741203046945,-1739.92,0.00038356,9]
[355490967,1741203046955,-208.80501076,0.00038356,9]
[355490968,1741203047153,-605.75692134,0.00037555,106]
[355490969,1741203047168,-320.11269409,0.00037555,106]
[355490991,1741204158133,-500.0,0.00019022,2]
[355490992,1741204158155,-500.0,0.00019022,2]
[355490993,1741204158176,-973.80020829,0.00019022,2]
[355491036,1741204232419,-150.0,0.000189,2]
[355491037,1741204232429,-4.27988674,0.00019022,2]
[355491039,1741204232438,-500.0,0.00019022,2]
[355491041,1741204232448,-500.0,0.00019022,2]
[355491043,1741204232457,-500.0,0.00019022,2]
[355491045,1741204232467,-500.0,0.00019022,2]
[355491047,1741204232477,-500.0,0.00023,10]
[355491049,1741204232487,-223.84478573,0.00023,120]
[355491051,1741204232503,-500.0,0.00023,10]
[355491052,1741204232513,-500.0,0.00023,10]
[355491053,1741204232523,-500.0,0.00023,10]
[355491055,1741204232535,-500.0,0.00023,10]
[355491057,1741204232545,-500.0,0.00023,10]
[355491059,1741204232555,-872.2864266,0.00023,10]
[355491061,1741204232564,-500.0,0.00023,10]
[355491062,1741204232575,-500.0,0.00023,10]
[355491063,1741204232583,-500.0,0.00023,10]
[355491064,1741204232593,-500.0,0.00023,10]
[355491065,1741204232603,-500.0,0.00023,10]
[355491066,1741204232613,-150.0,0.000239,2]
[355491067,1741204232623,-184.174304,0.00030256,2]
[355491068,1741204232632,-638.87752318,0.000309,5]
[355491069,1741204232641,-272.18922785,0.00032075,5]
[355491070,1741204232655,-4.3478459,0.00032075,5]
[355491071,1741204232670,-496.3411619,0.00032075,5]
[355491072,1741204232680,-500.0,0.00033233,2]
[355491073,1741204232690,-500.0,0.000335,5]
[355491074,1741204232699,-500.0,0.000335,5]
[355491075,1741204232709,-500.0,0.000335,2]
[355491076,1741204232719,-552.48034448,0.000335,5]
[355491077,1741204232729,-500.70047773,0.000335,5]
[355491078,1741204232738,-429.57581091,0.000335,5]
[355491079,1741204232748,-500.0,0.000335,5]
[355491080,1741204232758,-500.0,0.000335,5]
[355491081,1741204232768,-609.40605544,0.000335,5]
[355491082,1741204232778,-150.54,0.0003499,2]
[355491083,1741204232787,-150.54,0.0003499,2]
[355491084,1741204232797,-150.54,0.0003499,2]
[355491085,1741204232806,-150.54,0.0003499,2]
[355491086,1741204232815,-150.54,0.0003499,2]
[355491087,1741204232824,-150.54,0.0003499,2]
[355491088,1741204232834,-150.54,0.0003499,2]
[355491089,1741204232843,-51508.67033873,0.00035,5]
[355491090,1741204232854,-2272.14325165,0.000351,2]
[355491091,1741204232863,-500.0,0.000352,5]
[355491092,1741204232873,-629.67,0.00035324,3]
[355491093,1741204232883,-24900.0,0.00035334,2]
[355491094,1741204232893,-406.276379,0.0003589,2]
[355491095,1741204232906,-943.13216167,0.000362,98]
[355491096,1741204232916,-943.13216163,0.000362,98]
[355491097,1741204232927,-943.13216163,0.000362,98]
[355491098,1741204232936,-416.66666667,0.00036731,2]
[355491099,1741204232947,-7342.35025232,0.00036731,2]
[355491100,1741204232957,-2272.14325158,0.00037143,2]
[355491101,1741204232967,-195.45,0.0003765,2]
[355491102,1741204232976,-300.0,0.000378,10]
[355491103,1741204232986,-1375.74803926,0.00038256,2]
[355491104,1741204232996,-1225.0,0.00038317,36]
[355491105,1741204233007,-500.0,0.00038355,15]
[355491106,1741204233017,-157.66051583,0.00038355,15]
[355491107,1741204233027,-500.0,0.00038355,15]
[355491108,1741204233038,-563.97618065,0.00038355,15]
[355491109,1741204233049,-500.0,0.00038355,15]
[355491110,1741204233059,-551.52131225,0.00038355,15]
[355491111,1741204233069,-1042.79,0.00038355,120]
[355491112,1741204233079,-500.0,0.00038356,9]
[355491113,1741204233089,-431.14274375,0.00038356,9]
[355491114,1741204233098,-497.12912237,0.00038356,9]
[355491115,1741204233108,-201.78709757,0.00038356,9]
[355491116,1741204233118,-150.0,0.00038356,2]
[355491117,1741204233128,-500.0,0.00038356,9]
[355491118,1741204233139,-500.0,0.00038356,9]
[355491119,1741204233149,-500.0,0.00038356,9]
[355491120,1741204233161,-504.41618005,0.00038356,9]
[355491121,1741204233172,-500.0,0.00038356,9]
[355491122,1741204233183,-500.0,0.00038356,9]
[355491123,1741204233193,-500.0,0.00038356,9]
[355491124,1741204233203,-500.0,0.00038356,9]
[355491125,1741204233213,-225.74468896,0.00038356,9]
[355491126,1741204233223,-500.0,0.00038356,9]
[355491127,1741204233233,-500.0,0.00038356,9]
[355491128,1741204233243,-500.0,0.00038356,9]
[355491129,1741204233253,-500.0,0.00038356,9]
[355491130,1741204233263,-500.0,0.00038356,9]
[355491131,1741204233273,-500.0,0.00038356,9]
[355491132,1741204233283,-500.0,0.00038356,9]
[355491133,1741204233293,-500.0,0.00038356,9]
[355491134,1741204233303,-501.71481243,0.00038356,9]
[355491135,1741204233313,-501.545832,0.00038356,9]
[355491136,1741204233323,-500.0,0.00038356,9]
[355491137,1741204233333,-500.0,0.00038356,9]
[355491138,1741204233343,-500.0,0.00038356,9]
[355491139,1741204233354,-500.0,0.00038356,9]
[355491140,1741204233364,-500.0,0.00038356,9]
[355491141,1741204233375,-508.3801604,0.00038356,9]
[355491142,1741204233385,-500.0,0.00038356,9]
[355491143,1741204233395,-575.747745,0.00038356,9]
[355491144,1741204233407,-500.0,0.00038356,9]
[355491145,1741204233417,-500.0,0.00038356,9]
[355491146,1741204233427,-500.0,0.00038356,9]
[355491147,1741204233437,-265.57956178,0.00038356,9]
[355491148,1741204233447,-500.0,0.00038356,9]
[355491149,1741204233457,-500.0,0.00038356,9]
[355491150,1741204233467,-500.0,0.00038356,9]
[355491151,1741204233478,-500.0,0.00038356,9]
[355491152,1741204233488,-500.0,0.00038356,9]
[355491153,1741204233498,-500.0,0.00038356,9]
[355491154,1741204233507,-500.0,0.00038356,9]
[355491155,1741204233520,-500.0,0.00038356,9]
[355491156,1741204233531,-500.0,0.00038356,9]
[355491157,1741204233541,-512.73966726,0.00038356,9]
[355491158,1741204233551,-500.0,0.00038356,9]
[355491159,1741204233561,-500.0,0.00038356,9]
[355491160,1741204233571,-500.0,0.00038356,120]
[355491161,1741204233581,-500.0,0.00038356,9]
[355491162,1741204233590,-500.0,0.00038356,9]
[355491163,1741204233601,-500.0,0.00038356,9]
[355491164,1741204233611,-265.51698481,0.00038356,9]
[355491165,1741204233621,-500.0,0.00038356,9]
[355491166,1741204233630,-500.0,0.00038356,9]
[355491167,1741204233639,-500.0,0.00038356,9]
[355491168,1741204233648,-500.0,0.00038356,9]
[355491169,1741204233661,-500.0,0.00038356,9]
[355491170,1741204233671,-507.49556275,0.00038356,9]
[355491171,1741204233680,-500.0,0.00038356,9]
[355491172,1741204233690,-502.00232462,0.00038356,7]
[355491173,1741204233699,-500.0,0.00038356,9]
[355491174,1741204233709,-500.0,0.00038356,9]
[355491175,1741204233720,-624.98,0.00038356,9]
[355491176,1741204233730,-503.19159942,0.00038356,9]
[355491177,1741204233739,-500.0,0.00038356,9]
[355491178,1741204233749,-500.0,0.00038356,9]
[355491179,1741204233758,-500.0,0.00038356,9]
[355491180,1741204233768,-500.0,0.00038356,9]
[355491181,1741204233778,-500.0,0.00038356,9]
[355491182,1741204233788,-500.0,0.00038356,9]
[355491183,1741204234021,-500.0,0.00038356,9]
[355491184,1741204234033,-500.0,0.00038356,9]
[355491185,1741204234044,-500.0,0.00038356,9]
[355491186,1741204234054,-500.0,0.00038356,9]
[355491187,1741204234065,-500.0,0.00038356,9]
[355491188,1741204234074,-500.0,0.00038356,9]
[355491189,1741204234083,-593.28,0.00038356,9]
[355491190,1741204234093,-500.0,0.00038356,9]
[355491191,1741204234102,-500.0,0.00038356,9]